bitfinex/quotes_ETHUSD_20220111
["timestamp","ask_amount","ask_price","bid_price","bid_amount"]
[1641940204443,2.9521935,3226.2,3225.4,2.64179007]
[1641940204644,3.63586155,3226.2,3225.4,2.64179007]
[1641940205695,0.77512,3226.1,3225.4,2.64179007]
[1641940207202,0.00341054,3226.0,3225.4,2.64179007]
[1641940207604,0.00284211,3225.9,3225.4,2.64179007]
[1641940208000,0.00227369,3225.8,3225.4,2.64179007]
[1641940208202,0.00227369,3225.8,3225.4,5.74179007]
[1641940208405,0.00170527,3225.7,3225.4,5.74179007]
[1641940208839,0.00113684,3225.6,3225.5,2.64179007]
[1641940214893,0.00113684,3225.6,3225.5,2.94179007]
[1641940215495,1.27310364,3225.6,3225.5,2.94179007]
[1641940215696,1.27310364,3225.6,3225.5,5.5974828]
[1641940216143,1.27310364,3225.6,3225.5,2.64179007]
[1641940216350,1.27310364,3225.6,3225.5,2.71928007]
[1641940216544,1.27310364,3225.6,3225.5,2.64179007]
[1641940216942,1.27310364,3225.6,3225.5,5.42172574]
[1641940217145,1.27310364,3225.6,3225.5,5.72172574]
[1641940217743,1.27310364,3225.6,3225.5,5.49921574]
[1641940218744,1.27310364,3225.6,3225.5,5.79921574]
[1641940219146,1.27310364,3225.6,3225.5,6.57415574]
[1641940219343,1.27310364,3225.6,3225.5,5.79921574]
[1641940221993,1.27310364,3225.6,3225.5,6.09921574]
[1641940222992,1.27310364,3225.6,3225.5,8.45715445]
[1641940225947,1.27310364,3225.6,3225.5,8.37966445]
[1641940227387,1.27310364,3225.6,3225.5,6.79666574]
[1641940228191,1.27310364,3225.6,3225.5,8.37690871]
[1641940229599,1.27310364,3225.6,3225.5,7.77690871]
[1641940229895,1.27310364,3225.6,3225.5,6.19666574]
[1641940230093,1.27310364,3225.6,3225.5,6.14666574]
[1641940230296,1.27310364,3225.6,3225.5,3.36673007]
[1641940231848,1.27310364,3225.6,3225.5,6.08656909]
[1641940234818,1.27310364,3225.6,3225.5,7.66635099]
[1641940235919,1.27310364,3225.6,3225.5,6.08656909]
[1641940236719,1.27310364,3225.6,3225.5,7.66635099]
[1641940237823,1.27310364,3225.6,3225.5,8.26635099]
[1641940238226,1.27310364,3225.6,3225.5,7.66635099]
[1641940238645,1.27310364,3225.6,3225.5,11.62811219]
[1641940239242,1.2719668,3225.6,3225.5,11.62811219]
[1641940239647,1.2719668,3225.6,3225.5,12.22811219]
[1641940239844,1.2719668,3225.6,3225.5,11.92811219]
[1641940240244,1.2719668,3225.6,3225.5,10.34833029]
[1641940241244,1.2719668,3225.6,3225.5,10.04833029]
[1641940242154,1.2719668,3225.6,3225.5,11.62786754]
[1641940243994,1.2719668,3225.6,3225.5,10.04833029]
[1641940244800,1.2719668,3225.6,3225.5,10.34833029]
[1641940245397,1.2719668,3225.6,3225.5,11.9278326]
[1641940245798,1.2719668,3225.6,3225.5,10.34833029]
[1641940247364,1.2719668,3225.6,3225.5,10.04833029]
[1641940248865,1.2719668,3225.6,3225.5,28.15833029]
[1641940253305,1.2719668,3225.6,3225.5,25.43849127]
[1641940254142,1.2719668,3225.6,3225.5,27.77746883]
[1641940255147,1.2719668,3225.6,3225.5,28.07746883]
[1641940255543,1.2719668,3225.6,3225.5,28.15495883]
[1641940258699,1.2719668,3225.6,3225.5,28.45495883]
[1641940259099,1.2719668,3225.6,3225.5,29.45495883]
[1641940260002,1.2719668,3225.6,3225.5,27.11598127]
[1641940267803,0.31303446,3227.0,3225.5,30.28187422]
[1641940268004,0.31303446,3227.0,3226.2,0.77476]
[1641940268207,0.00852635,3226.9,3226.2,0.77476]
[1641940268643,0.00795793,3226.8,3226.2,0.77476]
[1641940269042,0.31303446,3227.0,3226.2,0.77476]
[1641940269043,0.0073895,3226.7,3226.2,0.77476]
[1641940269343,0.00682108,3226.6,3226.3,2.59179007]
[1641940269741,0.00625265,3226.5,3226.3,2.59179007]
[1641940270143,0.00568423,3226.4,3226.3,2.59179007]
[1641940276266,0.00568423,3226.4,3226.3,5.69179007]
[1641940299844,2.76315423,3227.1,3226.5,0.77469]
[1641940300047,0.07747,3227.0,3226.3,5.69179007]
[1641940300245,0.00284212,3226.9,3226.3,9.65355127]
[1641940300447,0.00284212,3226.9,3226.3,10.03101127]
[1641940300644,0.0022737,3226.8,3226.3,10.03101127]
[1641940300944,0.00170527,3226.7,3226.4,2.59179007]
[1641940301347,0.00113685,3226.6,3226.4,2.59179007]
[1641940301747,0.00341054,3227.0,3226.4,2.59179007]
[1641940302389,0.00341054,3227.0,3226.5,0.7747]
[1641940303192,0.00341054,3227.0,3226.6,2.59179007]
[1641940304893,0.00341054,3227.0,3226.4,4.14106007]
[1641940305497,0.00341054,3227.0,3226.6,0.77467]
[1641940306143,0.00341054,3227.0,3226.7,2.59179007]
[1641940306549,0.00341054,3227.0,3226.8,0.77462]
[1641940308048,0.00341054,3227.0,3226.9,2.59179007]
[1641940311693,0.00341054,3227.0,3226.7,2.59179007]
[1641940312695,0.00341054,3227.0,3226.7,6.55355127]
[1641940313399,0.00341054,3227.0,3226.8,0.77463]
[1641940313648,0.00341054,3227.0,3226.9,0.07746]
[1641940314947,0.00341054,3227.0,3226.8,3.44388007]
[1641940315348,2.76315423,3227.1,3226.9,3.36632817]
[1641940315349,0.76656477,3227.1,3226.9,3.36632817]
[1641940315555,0.07746,3227.8,3227.0,0.77454]
[1641940315953,0.00397897,3227.7,3227.0,0.77454]
[1641940316352,0.00341054,3227.6,3227.0,0.77454]
[1641940316753,0.07745,3228.4,3227.0,18.88454]
[1641940316754,0.00284212,3227.5,3227.0,18.88454]
[1641940316953,0.00284212,3227.5,3227.1,2.76283526]
[1641940317155,0.07745,3228.5,3227.3,3.67449]
[1641940317156,0.0022737,3227.4,3227.3,3.67449]
[1641940317811,0.0022737,3227.4,3227.3,6.26628007]
[1641940318507,0.0022737,3227.4,3227.3,6.34373007]
[1641940320112,0.0022737,3227.4,3227.3,10.30549127]
[1641940320316,0.0022737,3227.4,3227.3,10.60549127]
[1641940320710,0.0022737,3227.4,3227.3,28.41549127]
[1641940321547,0.0022737,3227.4,3227.3,30.01549127]
[1641940321948,0.0022737,3227.4,3227.3,11.90549127]
[1641940322348,0.0022737,3227.4,3227.3,30.01549127]
[1641940322748,0.0022737,3227.4,3227.3,26.05373007]
[1641940323350,0.0022737,3227.4,3227.3,25.05373007]
[1641940323549,0.0022737,3227.4,3227.3,30.01549127]
[1641940324793,0.0022737,3227.4,3227.3,11.90549127]
[1641940325198,0.0022737,3227.4,3227.3,30.01549127]
[1641940326300,3.2628,3228.8,3227.4,20.96]
[1641940326501,3.34023,3228.8,3227.9,0.77437]
[1641940326702,0.0073895,3228.7,3227.7,1.1576]
[1641940327102,0.00682108,3228.6,3227.7,1.4576]
[1641940327500,0.00625265,3228.5,3227.8,2.67983862]
[1641940327702,0.00625265,3228.5,3227.7,1.4576]
[1641940327902,0.00568423,3228.4,3227.7,4.05833411]
[1641940328309,0.00511581,3228.3,3227.8,2.59179007]
[1641940328753,0.00454738,3228.2,3227.8,3.36620007]
[1641940329155,0.07742,3228.9,3227.9,2.59155582]
[1641940329156,0.00397896,3228.1,3227.9,2.59155582]
[1641940329553,0.00341054,3228.0,3227.8,3.36620007]
[1641940329955,0.00284211,3227.9,3227.8,3.36620007]
[1641940330158,0.00284211,3227.9,3227.8,0.77441]
[1641940330359,0.00284211,3227.9,3227.8,3.51365373]
[1641940331559,0.00284211,3227.9,3227.8,0.77441]
[1641940331962,0.00284211,3227.9,3227.8,3.72441]
[1641940332159,0.00284211,3227.9,3227.8,6.3160247]
[1641940332594,0.00284211,3227.9,3227.8,3.72441]
[1641940332798,0.00284211,3227.9,3227.8,6.34334632]
[1641940333299,0.00284211,3227.9,3227.8,3.72441]
[1641940333503,0.00284211,3227.9,3227.8,6.33699053]
[1641940334099,0.00284211,3227.9,3227.8,25.22127353]
[1641940334903,0.00284211,3227.9,3227.8,25.52127353]
[1641940335102,0.00284211,3227.9,3227.8,8.41127353]
[1641940335301,0.00284211,3227.9,3227.8,26.52127353]
[1641940335804,0.00284211,3227.9,3227.8,26.59872353]
[1641940336058,0.00284211,3227.9,3227.8,30.55874004]
[1641940339452,0.00284211,3227.9,3227.8,33.56749433]
[1641940342503,0.36401347,3229.3,3228.0,18.11]
[1641940342706,0.36401347,3229.3,3228.6,1.5482753]
[1641940342903,0.00738951,3229.2,3228.6,4.16614154]
[1641940343114,0.00738951,3229.2,3228.6,1.5482753]
[1641940343302,0.00682108,3229.1,3228.6,1.5482753]
[1641940343744,0.00625266,3229.0,3228.8,0.77415]
[1641940344149,0.00568424,3228.9,3228.8,0.77415]
[1641940344848,0.00568424,3228.9,3228.8,3.57415]
[1641940348899,0.00568424,3228.9,3228.8,6.67415]
[1641940349599,0.00568424,3228.9,3228.8,9.36111431]
[1641940350299,0.00568424,3228.9,3228.8,6.67415]
[1641940352354,0.00568424,3228.9,3228.8,6.97415]
[1641940352754,0.00568424,3228.9,3228.8,7.05157]
[1641940353157,0.00568424,3228.9,3228.8,9.69128359]
[1641940355002,0.00568424,3228.9,3228.8,10.90958359]
[1641940356212,0.00568424,3228.9,3228.8,10.60958359]
[1641940356916,0.00568424,3228.9,3228.8,7.96987]
[1641940357508,0.00568424,3228.9,3228.8,7.89245]
[1641940357908,0.00568424,3228.9,3228.8,10.5322187]
[1641940358552,0.00568424,3228.9,3228.8,31.70706284]
[1641940358751,0.00568424,3228.9,3228.8,11.2096387]
[1641940360352,0.00568424,3228.9,3228.8,29.3196387]
[1641940360550,0.00568424,3228.9,3228.8,11.2096387]
[1641940360952,0.00568424,3228.9,3228.8,29.3196387]
[1641940361153,0.00568424,3228.9,3228.8,10.6096387]
[1641940361352,0.00568424,3228.9,3228.8,13.93911792]
[1641940361552,0.00568424,3228.9,3228.8,32.34911792]
[1641940361952,0.00568424,3228.9,3228.8,14.23911792]
[1641940363599,0.00568424,3228.9,3228.8,18.19821372]
[1641940363800,0.00568424,3228.9,3228.8,36.30821372]
[1641940364598,0.00568424,3228.9,3228.8,18.19821372]
[1641940365502,0.00568424,3228.9,3228.8,36.30821372]
[1641940365904,0.00568424,3228.9,3228.8,32.34911792]
[1641940366552,0.00568424,3228.9,3228.8,36.30821372]
[1641940367359,0.00568424,3228.9,3228.8,33.2787345]
[1641940369156,0.00568424,3228.9,3228.8,34.2787345]
[1641940374452,0.07742,3230.4,3228.8,34.2787345]
[1641940374654,0.07742,3230.4,3229.4,0.77398]
[1641940374853,0.01364217,3230.3,3229.4,0.77398]
[1641940375358,0.01307374,3230.2,3229.4,0.77398]
[1641940375751,0.01250532,3230.1,3229.4,0.77398]
[1641940376252,0.07739,3230.5,3229.4,0.77398]
[1641940376253,0.0119369,3230.0,3229.4,0.77398]
[1641940376654,0.01136847,3229.9,3229.4,0.77398]
[1641940377053,0.01080005,3229.8,3229.4,0.77398]
[1641940377503,0.01023163,3229.7,3229.6,3.42393]
[1641940377903,0.01023163,3229.7,3229.6,4.61503]
[1641940378298,0.01023163,3229.7,3229.6,22.72503]
[1641940379304,0.01023163,3229.7,3229.6,25.36425633]
[1641940380806,0.01023163,3229.7,3229.6,7.25425633]
[1641940381080,0.01023163,3229.7,3229.6,10.90885633]
[1641940382074,0.01023163,3229.7,3229.6,29.01885633]
[1641940383479,0.01023163,3229.7,3229.6,29.31885633]
[1641940384377,0.01023163,3229.7,3229.6,32.40397334]
[1641940384580,0.01023163,3229.7,3229.6,32.78136334]
[1641940384806,0.01023163,3229.7,3229.6,33.48136334]
[1641940385007,0.01023163,3229.7,3229.6,33.78136334]
[1641940385211,3.163e-05,3229.7,3229.6,33.78136334]
[1641940385617,3.163e-05,3229.7,3229.6,37.73950947]
[1641940389868,3.163e-05,3229.7,3229.6,40.83950947]
[1641940391276,0.07739,3231.6,3229.7,2.6]
[1641940391482,3.45299872,3232.2,3230.7,0.7736172]
[1641940391677,0.01023162,3231.5,3230.8,7.75099997]
[1641940391877,0.01023162,3231.5,3230.9,1.2024]
[1641940392078,2.67855547,3232.4,3230.9,1.2024]
[1641940392079,0.00966319,3231.4,3230.9,1.2024]
[1641940392310,0.00966319,3231.4,3230.9,19.3124]
[1641940392510,0.00909477,3231.3,3230.9,19.6124]
[1641940392712,0.00909477,3231.3,3231.2,3.27357]
[1641940392912,0.26882366,3232.5,3231.2,3.27357]
[1641940393110,0.26882366,3232.5,3231.3,1.1865]
[1641940393311,0.01477901,3232.3,3231.3,1.1865]
[1641940393714,0.01421058,3232.2,3231.3,1.1865]
[1641940393913,0.01421058,3232.2,3231.4,0.77352]
[1641940394115,0.01364216,3232.1,3231.4,0.77352]
[1641940394511,0.19147366,3232.5,3231.4,0.77352]
[1641940394512,0.01307374,3232.0,3231.4,0.77352]
[1641940394812,0.01250531,3231.9,3231.4,0.77352]
[1641940395215,0.01193689,3231.8,3231.4,0.77352]
[1641940395614,0.01136846,3231.7,3231.4,0.77352]
[1641940396068,0.19147366,3232.5,3231.4,0.77352]
[1641940396069,0.01080004,3231.6,3231.4,0.77352]
[1641940396555,0.01023162,3231.5,3231.4,1.07352]
[1641940396757,0.01023162,3231.5,3231.4,1.37352]
[1641940396956,0.01023162,3231.5,3231.4,1.07352]
[1641940397159,0.01023162,3231.5,3231.4,3.62352]
[1641940397358,0.01023162,3231.5,3231.4,6.74292732]
[1641940397557,0.01023162,3231.5,3231.4,4.92352]
[1641940397757,0.01023162,3231.5,3231.4,5.00087]
[1641940399558,0.01023162,3231.5,3231.4,8.10087]
[1641940400209,0.01023162,3231.5,3231.4,26.21087]
[1641940400604,0.01023162,3231.5,3231.4,29.38847]
[1641940402210,0.01023162,3231.5,3231.4,27.78847]
[1641940403655,0.01023162,3231.5,3231.4,29.38847]
[1641940404357,1.81411913,3233.1,3231.5,2.5]
[1641940404561,1.81411913,3233.1,3231.4,25.16112]
[1641940404562,0.07736,3232.7,3231.7,0.77345]
[1641940404763,0.00511581,3232.4,3231.7,0.77345]
[1641940405160,0.00454739,3232.3,3231.7,0.77345]
[1641940405360,0.00454739,3232.3,3231.8,5.0288]
[1641940405660,0.00397896,3232.2,3231.8,5.0288]
[1641940406061,0.00341054,3232.1,3231.8,5.0288]
[1641940406466,0.00284212,3232.0,3231.8,5.0288]
[1641940406961,0.00227369,3231.9,3231.8,5.3288]
[1641940407163,0.00227369,3231.9,3231.8,5.6288]
[1641940408409,0.00227369,3231.9,3231.8,5.0288]
[1641940408809,0.77349,3232.9,3231.8,5.0288]
[1641940408810,0.67104739,3232.9,3231.9,2.55]
[1641940409216,0.00511581,3232.8,3231.9,2.55]
[1641940409616,0.00454739,3232.7,3231.9,2.55]
[1641940410016,0.00397897,3232.6,3231.9,2.55]
[1641940410417,0.00341054,3232.5,3231.9,2.55]
[1641940410815,0.00284212,3232.4,3231.9,2.55]
[1641940411259,0.0022737,3232.3,3231.9,2.55]
[1641940411667,0.00170527,3232.2,3231.9,2.55]
[1641940412059,1.04063913,3233.1,3231.9,2.55]
[1641940412060,0.00113685,3232.1,3231.9,2.55]
[1641940412460,0.00625266,3233.0,3231.9,2.85]
[1641940412660,0.00625266,3233.0,3232.0,0.3]
[1641940412860,0.00568424,3232.9,3232.1,0.07732]
[1641940413059,0.00568424,3232.9,3231.9,2.92732]
[1641940413262,0.00625266,3233.0,3231.9,2.92732]
[1641940413560,0.00568424,3232.9,3231.9,2.92732]
[1641940413961,0.00625266,3233.0,3231.9,2.92732]
[1641940414364,0.26718913,3233.1,3231.9,2.92732]
[1641940414365,0.00568424,3232.9,3231.9,2.92732]
[1641940414662,0.00625266,3233.0,3231.9,2.92732]
[1641940415108,0.00568424,3232.9,3231.9,2.92732]
[1641940415511,0.00625266,3233.0,3231.9,2.92732]
[1641940415912,0.00568424,3232.9,3231.9,2.92732]
[1641940416312,0.00625266,3233.0,3231.9,2.92732]
[1641940416718,0.00568424,3232.9,3231.9,2.92732]
[1641940417114,0.00625266,3233.0,3231.9,2.92732]
[1641940417516,0.00568424,3232.9,3231.9,2.92732]
[1641940417915,0.00625266,3233.0,3231.9,2.92732]
[1641940418316,0.00568424,3232.9,3231.9,2.92732]
[1641940418757,0.00625266,3233.0,3231.9,2.92732]
[1641940419158,0.00568424,3232.9,3231.9,2.92732]
[1641940419559,0.00625266,3233.0,3231.9,2.92732]
[1641940419961,0.00568424,3232.9,3231.9,2.92732]
[1641940420369,0.00625266,3233.0,3232.0,0.3]
[1641940420566,0.00625266,3233.0,3231.9,2.62732]
[1641940420765,0.00568424,3232.9,3231.9,2.62732]
[1641940421171,2.89283908,3233.0,3231.9,2.62732]
[1641940421366,2.87199134,3233.0,3231.9,2.62732]
[1641940421566,0.00568424,3232.9,3231.9,2.62732]
[1641940421973,2.85440468,3233.0,3231.9,2.62732]
[1641940422406,0.00568424,3232.9,3231.9,2.62732]
[1641940423613,0.00568424,3232.9,3232.0,0.3]
[1641940423817,0.00568424,3232.9,3232.1,0.07734]
[1641940425213,0.00568424,3232.9,3232.0,0.3]
[1641940427359,0.00568424,3232.9,3232.0,1.3]
[1641940427558,0.00568424,3232.9,3232.1,0.07734]
[1641940428763,0.00568424,3232.9,3231.9,2.92732]
[1641940430415,0.00568424,3232.9,3231.9,6.02732]
[1641940431016,0.77917424,3232.9,3231.9,6.02732]
[1641940431218,0.00568424,3232.9,3231.9,6.02732]
[1641940431418,0.00568424,3232.9,3232.0,2.63704408]
[1641940432225,0.77917424,3232.9,3232.0,2.63704408]
[1641940432527,3.5977553,3232.9,3232.0,2.63704408]
[1641940432925,0.77917424,3232.9,3232.0,2.63704408]
[1641940433576,2.81110199,3232.9,3232.0,2.63704408]
[1641940434165,0.00568424,3232.9,3232.0,2.63704408]
[1641940435871,0.00568424,3232.9,3232.0,2.93704408]
[1641940436974,0.00568424,3232.9,3232.1,2.63704408]
[1641940437916,2.82254328,3232.9,3232.1,2.63704408]
[1641940438117,0.00568424,3232.9,3232.1,2.63704408]
[1641940439519,2.83691032,3232.9,3232.1,2.63704408]
[1641940439719,2.83691032,3232.9,3232.0,2.63704408]
[1641940439918,2.82392458,3232.9,3232.0,2.63704408]
[1641940440120,0.00568424,3232.9,3232.0,2.63704408]
[1641940440520,2.83528808,3232.9,3232.0,2.63704408]
[1641940440719,2.83528808,3232.9,3232.0,2.93704408]
[1641940440921,2.83528808,3232.9,3232.0,3.23704408]
[1641940441160,2.83528808,3232.9,3232.0,2.63704408]
[1641940441360,2.83528808,3232.9,3231.9,3.17732]
[1641940441661,2.83528808,3232.9,3231.9,3.47732]
[1641940441860,2.83528808,3232.9,3231.9,3.17732]
[1641940442062,2.83528808,3232.9,3232.0,2.63693208]
[1641940443664,0.00568424,3232.9,3232.0,2.63693208]
[1641940444663,2.86999412,3232.9,3232.0,2.63693208]
[1641940444909,0.00568424,3232.9,3232.0,2.63693208]
[1641940446017,3.6072152,3232.9,3232.0,2.63693208]
[1641940446221,4.34892949,3232.9,3232.0,2.63693208]
[1641940446417,3.58039851,3232.9,3232.0,2.63693208]
[1641940447219,0.77920424,3232.9,3232.0,2.63693208]
[1641940447421,4.34749066,3232.9,3232.0,2.63693208]
[1641940447621,1.55273424,3232.9,3232.0,2.63693208]
[1641940449272,0.77920424,3232.9,3232.0,2.63693208]
[1641940451474,0.00568424,3232.9,3232.0,2.63693208]
[1641940452513,0.00568424,3232.9,3232.0,2.93693208]
[1641940452711,1.04064913,3233.1,3232.0,2.93693208]
[1641940452913,1.04064913,3233.1,3232.0,2.63693208]
[1641940453117,0.00625266,3233.0,3232.0,2.93693208]
[1641940453317,0.00625266,3233.0,3232.0,3.01425208]
[1641940453516,0.00568424,3232.9,3232.1,2.63693208]
[1641940453913,0.00511581,3232.8,3232.1,2.63693208]
[1641940454320,0.00454739,3232.7,3232.1,2.63693208]
[1641940454717,0.00397897,3232.6,3232.1,2.63693208]
[1641940454917,0.00397897,3232.6,3232.2,0.07734]
[1641940455115,0.00341054,3232.5,3232.1,2.63693208]
[1641940455516,0.00284212,3232.4,3232.3,2.63693208]
[1641940456566,0.00284212,3232.4,3232.0,2.63693208]
[1641940456964,0.0022737,3232.3,3232.0,2.63693208]
[1641940457365,0.00170527,3232.2,3232.0,2.63693208]
[1641940457765,0.00113685,3232.1,3232.0,2.63693208]
[1641940458370,0.00113685,3232.1,3232.0,5.08693208]
[1641940463021,1.76525598,3233.1,3232.1,2.75]
[1641940463423,0.00511581,3233.0,3232.1,2.75]
[1641940463664,0.00511581,3233.0,3232.2,2.63693208]
[1641940463863,0.00454739,3232.9,3232.2,2.63693208]
[1641940464263,0.00397896,3232.8,3232.0,2.63693208]
[1641940464763,0.00341054,3232.7,3232.0,2.63693208]
[1641940465168,1.76525598,3233.1,3232.0,2.63693208]
[1641940465169,0.00284212,3232.6,3232.0,2.63693208]
[1641940465569,0.00227369,3232.5,3232.0,2.63693208]
[1641940465974,0.00170527,3232.4,3232.0,2.63693208]
[1641940466370,0.00113685,3232.3,3232.0,2.63693208]
[1641940472166,0.00113685,3232.3,3232.0,3.41037208]
[1641940473771,0.00113685,3232.3,3232.1,2.63693208]
[1641940476215,0.00113685,3232.3,3232.0,2.63693208]
[1641940496675,0.77349,3233.2,3232.0,2.63693208]
[1641940497079,0.00568423,3233.1,3232.0,2.63693208]
[1641940497515,0.00511581,3233.0,3232.0,2.63693208]
[1641940497915,0.00454739,3232.9,3232.0,2.63693208]
[1641940498118,0.00454739,3232.9,3232.1,0.77344]
[1641940498320,0.00397896,3232.8,3232.1,0.77344]
[1641940498722,0.00341054,3232.7,3232.1,0.77344]
[1641940499123,0.00284212,3232.6,3232.1,0.77344]
[1641940499424,0.00227369,3232.5,3232.2,2.63693208]
[1641940499627,0.00227369,3232.5,3232.3,1.1622]
[1641940499924,0.00170527,3232.4,3232.3,4.2122]
[1641940500822,0.00170527,3232.4,3232.3,6.84913208]
[1641940503069,0.00170527,3232.4,3232.3,7.14913208]
[1641940509363,0.00170527,3232.4,3232.3,7.44913208]
[1641940512070,0.00170527,3232.4,3232.3,10.02010349]
[1641940512311,0.00170527,3232.4,3232.3,7.44913208]
[1641940513712,0.00170527,3232.4,3232.3,10.06927752]
[1641940514111,0.00170527,3232.4,3232.3,10.0055181]
[1641940514515,0.00170527,3232.4,3232.3,11.5521381]
[1641940514913,0.00170527,3232.4,3232.3,8.69575208]
[1641940516164,0.00170527,3232.4,3232.3,8.77309208]
[1641940516864,0.00170527,3232.4,3232.3,9.07309208]
[1641940518467,0.00170527,3232.4,3232.3,10.07309208]
[1641940518868,0.00170527,3232.4,3232.3,12.63468134]
[1641940519468,0.00170527,3232.4,3232.3,11.63468134]
[1641940519670,0.00170527,3232.4,3232.3,11.55734134]
[1641940520318,0.00170527,3232.4,3232.3,12.55734134]
[1641940520717,0.00170527,3232.4,3232.3,12.63468134]
[1641940523323,0.00170527,3232.4,3232.3,16.38128134]
[1641940524363,1.49837527,3233.9,3232.5,0.80343649]
[1641940524566,0.07734,3234.1,3232.6,4.2428]
[1641940524765,0.00795793,3233.8,3232.7,1.1406]
[1641940525264,0.0073895,3233.7,3232.7,1.1406]
[1641940525669,0.00682108,3233.6,3232.7,1.1406]
[1641940525867,0.00682108,3233.6,3232.8,2.63693208]
[1641940526067,0.00625266,3233.5,3232.8,2.63693208]
[1641940526471,0.00568423,3233.4,3232.8,2.63693208]
[1641940526871,0.00511581,3233.3,3232.8,2.63693208]
[1641940527313,0.00454739,3233.2,3232.8,2.63693208]
[1641940527712,0.00397896,3233.1,3232.8,2.63693208]
[1641940528114,0.00341054,3233.0,3232.8,2.63693208]
[1641940528516,0.00284212,3232.9,3232.8,2.63693208]
[1641940528718,0.00284212,3232.9,3232.8,4.43693208]
[1641940530930,0.00284212,3232.9,3232.8,7.53693208]
[1641940531171,0.00284212,3232.9,3232.8,8.13693208]
[1641940531371,0.00284212,3232.9,3232.8,8.91019208]
[1641940537921,0.00284212,3232.9,3232.8,7.83693208]
[1641940539889,0.00284212,3232.9,3232.8,8.61021208]
[1641940541591,0.00284212,3232.9,3232.8,8.91021208]
[1641940541791,0.00284212,3232.9,3232.8,8.98753208]
[1641940542619,0.00284212,3232.9,3232.8,8.68753208]
[1641940542818,0.00284212,3232.9,3232.8,8.98753208]
[1641940546181,0.00284212,3232.9,3232.8,8.61021208]
[1641940546585,0.00284212,3232.9,3232.8,7.53693208]
[1641940553888,0.00284212,3232.9,3232.8,7.83693208]
[1641940556892,0.00284212,3232.9,3232.8,8.61021208]
[1641940558921,3.24209532,3234.0,3232.8,8.61021208]
[1641940559322,0.00852635,3233.9,3232.8,8.61021208]
[1641940559732,0.00795793,3233.8,3232.8,7.83693208]
[1641940560125,0.0073895,3233.7,3232.8,7.83693208]
[1641940560325,0.0073895,3233.7,3232.9,2.63693208]
[1641940560524,0.00682108,3233.6,3232.9,2.63693208]
[1641940560823,0.00625266,3233.5,3232.9,2.63693208]
[1641940561271,3.24209532,3234.0,3232.9,2.63693208]
[1641940561272,0.00568423,3233.4,3232.9,2.63693208]
[1641940561471,0.00568423,3233.4,3232.9,2.93693208]
[1641940561674,0.00511581,3233.3,3232.9,2.93693208]
[1641940561872,0.00511581,3233.3,3232.9,3.01424208]
[1641940562072,0.00454739,3233.2,3232.9,3.01424208]
[1641940562281,0.00454739,3233.2,3233.0,2.63693208]
[1641940562477,0.00397896,3233.1,3233.0,2.93693208]
[1641940563277,0.00397896,3233.1,3233.0,4.73693208]
[1641940564926,0.00397896,3233.1,3233.0,5.51016208]
[1641940568429,0.00397896,3233.1,3233.0,4.73693208]
[1641940575825,0.00397896,3233.1,3233.0,4.68693208]
[1641940576875,0.00397896,3233.1,3233.0,5.68693208]
[1641940577075,0.00397896,3233.1,3233.0,5.76424208]
[1641940578279,0.00397896,3233.1,3233.0,4.76424208]
[1641940579179,0.00397896,3233.1,3233.0,5.76424208]
[1641940580728,0.00397896,3233.1,3233.0,3.96424208]
[1641940591282,0.12721206,3233.1,3233.0,3.96424208]
[1641940592782,0.1232331,3233.1,3233.0,3.96424208]
[1641940594485,0.1232331,3233.1,3233.0,3.75424208]
[1641940594686,0.1232331,3233.1,3233.0,3.71424208]
[1641940596140,0.1232331,3233.1,3233.0,4.01424208]
[1641940596336,0.1232331,3233.1,3233.0,3.93693208]
[1641940599579,0.1232331,3233.1,3233.0,6.52505184]
[1641940600181,0.1232331,3233.1,3233.0,5.22505184]
[1641940600385,0.1232331,3233.1,3233.0,2.63693208]
[1641940601393,0.1232331,3233.1,3233.0,3.23693208]
[1641940612636,0.1232331,3233.1,3233.0,7.33451203]
[1641940612837,0.1232331,3233.1,3233.0,5.78693208]
[1641940613036,0.1232331,3233.1,3233.0,4.86424208]
[1641940613237,0.1232331,3233.1,3233.0,7.40610104]
[1641940613677,0.1232331,3233.1,3233.0,9.17930104]
[1641940614277,0.1232331,3233.1,3233.0,6.63744208]
[1641940614482,0.1232331,3233.1,3233.0,9.19077162]
[1641940615480,0.1232331,3233.1,3233.0,10.77304738]
[1641940615980,0.1232331,3233.1,3233.0,9.19077162]
[1641940616782,0.1232331,3233.1,3233.0,9.18052863]
[1641940616986,0.1232331,3233.1,3233.0,6.63744208]
[1641940617430,0.1232331,3233.1,3233.0,6.66971784]
[1641940617829,0.1232331,3233.1,3233.0,9.2287493]
[1641940618234,0.1232331,3233.1,3233.0,7.64647354]
[1641940618435,0.1232331,3233.1,3233.0,5.08744208]
[1641940619035,0.1232331,3233.1,3233.0,4.31424208]
[1641940619835,0.1232331,3233.1,3233.0,3.31424208]
[1641940621101,0.1232331,3233.1,3233.0,3.23693208]
[1641940629984,0.1232331,3233.1,3233.0,5.83464639]
[1641940630193,0.1232331,3233.1,3233.0,3.23693208]
[1641940638785,0.1232331,3233.1,3233.0,3.31424208]
[1641940639386,0.1232331,3233.1,3233.0,4.59651784]
[1641940639585,0.1232331,3233.1,3233.0,7.23804816]
[1641940640035,0.1232331,3233.1,3233.0,7.16073816]
[1641940640638,0.1232331,3233.1,3233.0,4.51920784]
[1641940641938,0.1232331,3233.1,3233.0,2.93693208]
[1641940644892,0.1232331,3233.1,3233.0,3.23693208]
[1641940646793,0.1232331,3233.1,3233.0,2.93693208]
[1641940648036,0.1232331,3233.1,3233.0,3.23693208]
[1641940650644,0.1232331,3233.1,3233.0,5.76928132]
[1641940651287,0.1232331,3233.1,3233.0,7.35155708]
[1641940655641,0.1232331,3233.1,3233.0,4.81920784]
[1641940656541,0.1232331,3233.1,3233.0,7.39531331]
[1641940657446,0.1232331,3233.1,3233.0,4.81920784]
[1641940660684,0.1232331,3233.1,3233.0,3.23693208]
[1641940662550,0.1232331,3233.1,3233.0,4.81920784]
[1641940665455,0.1232331,3233.1,3233.0,5.59239784]
[1641940665655,0.1232331,3233.1,3233.0,8.1809273]
[1641940666796,0.1232331,3233.1,3233.0,4.81920784]
[1641940667593,0.1232331,3233.1,3233.0,7.4001863]
[1641940668593,0.1232331,3233.1,3233.0,7.39759372]
[1641940668992,0.1232331,3233.1,3233.0,4.81920784]
[1641940669592,0.1232331,3233.1,3233.0,7.38751204]
[1641940669857,0.1232331,3233.1,3233.0,4.81920784]
[1641940670248,0.1232331,3233.1,3233.0,3.23693208]
[1641940670649,0.1232331,3233.1,3233.0,5.80116139]
[1641940672852,0.1232331,3233.1,3233.0,3.23693208]
[1641940673891,0.1232331,3233.1,3233.0,4.81686879]
[1641940674696,0.1232331,3233.1,3233.0,7.38460379]
[1641940675402,0.1232331,3233.1,3233.0,4.81686879]
[1641940687043,0.1232331,3233.1,3233.0,3.23693208]